fUSD/lending_fUSD_20241003
["ID","MTS","AMOUNT","RATE_DAILY","PERIOD"]
[339759415,1727952711627,-150.0,0.00010729,2]
[339759416,1727952711661,-150.0,0.0001073,2]
[339759417,1727952711689,-150.0,0.00010732,2]
[339759418,1727952711717,-150.0,0.00010733,2]
[339759419,1727952711748,-150.0,0.0001074,2]
[339759420,1727952711781,-150.0,0.0001074,2]
[339759421,1727952711810,-150.0,0.00010742,2]
[339759422,1727952711844,-150.0,0.00010742,2]
[339759423,1727952711874,-150.0,0.00010744,2]
[339759424,1727952711904,-150.0,0.00010744,2]
[339759425,1727952711933,-150.0,0.00010746,2]
[339759426,1727952711963,-150.0,0.00010748,2]
[339759427,1727952711991,-150.0,0.00010748,2]
[339759428,1727952712025,-150.0,0.00010754,2]
[339759429,1727952712059,-150.0,0.00010755,2]
[339759430,1727952712088,-150.0,0.00010756,2]
[339759431,1727952712119,-150.0,0.00010758,2]
[339759432,1727952712148,-150.0,0.00010759,2]
[339759433,1727952712177,-150.0,0.0001076,2]
[339759434,1727952712207,-150.0,0.00010761,2]
[339759435,1727952712237,-150.0,0.00010762,2]
[339759436,1727952712266,-150.0,0.00010772,2]
[339759437,1727952712297,-150.0,0.00010778,2]
[339759438,1727952712326,-150.0,0.00010778,2]
[339759439,1727952712356,-150.0,0.00010779,2]
[339759440,1727952712385,-150.0,0.00010779,2]
[339759441,1727952712414,-150.0,0.00010779,2]
[339759442,1727952712444,-150.0,0.00010787,2]
[339759443,1727952712474,-150.0,0.00010789,2]
[339759444,1727952712507,-150.0,0.00010794,2]
[339759445,1727952712536,-150.0,0.00010794,2]
[339759446,1727952712566,-150.0,0.00010796,2]
[339759447,1727952712595,-150.0,0.00010796,2]
[339759448,1727952712625,-150.0,0.00010797,2]
[339759449,1727952712869,-150.0,0.00010799,2]
[339759450,1727952713224,150.0,0.00010759,2]
[339759451,1727952713281,150.0,0.00010799,2]
[339759452,1727952713333,150.0,0.00010768,2]
[339759453,1727952713471,150.0,0.00010719,2]
[339759454,1727952713617,150.0,0.00010795,2]
[339759455,1727952713691,150.0,0.00010756,2]
[339759456,1727952713726,150.0,0.00010772,2]
[339759457,1727952713776,150.0,0.00010721,2]
[339759458,1727952713819,150.0,0.00010792,2]
[339759459,1727952713964,150.0,0.00010793,2]
[339759460,1727952714081,150.0,0.00010721,2]
[339759461,1727952714124,150.0,0.00010779,2]
[339759462,1727952714267,150.0,0.00010727,2]
[339759463,1727952714306,150.0,0.00010733,2]
[339759464,1727952728699,-150.0,0.00010801,2]
[339759465,1727952728731,-150.0,0.00010802,2]
[339759466,1727952728761,-150.0,0.00010809,2]
[339759467,1727952728795,-150.0,0.00010809,2]
[339759468,1727952728825,-150.0,0.00010813,2]
[339759469,1727952728856,-150.0,0.00010814,2]
[339759470,1727952728885,-150.0,0.00010815,2]
[339759471,1727952728916,-150.0,0.00010816,2]
[339759472,1727952728949,-150.0,0.00010817,2]
[339759473,1727952728979,-150.0,0.00010821,2]
[339759474,1727952729010,-150.0,0.00010822,2]
[339759475,1727952729042,-150.0,0.00010822,2]
[339759476,1727952729072,-150.0,0.00010827,2]
[339759477,1727952729104,-150.0,0.00010829,2]
[339759478,1727952729134,-150.0,0.00010831,2]
[339759479,1727952729164,-150.0,0.00010832,2]
[339759480,1727952729193,-150.0,0.00010838,2]
[339759481,1727952729222,-150.0,0.00010838,2]
[339759482,1727952729251,-150.0,0.00010839,2]
[339759483,1727952729281,-150.0,0.00010842,2]
[339759484,1727952729313,-150.0,0.00010843,2]
[339759485,1727952729343,-150.0,0.00010844,2]
[339759486,1727952729371,-150.0,0.00010847,2]
[339759487,1727952729400,-150.0,0.00010847,2]
[339759488,1727952729430,-150.0,0.00010847,2]
[339759489,1727952729458,-150.0,0.00010849,2]
[339759490,1727952729487,-150.0,0.0001085,2]
[339759491,1727952729516,-150.0,0.0001085,2]
[339759492,1727952729548,-150.0,0.00010851,2]
[339759493,1727952729578,-150.0,0.00010853,2]
[339759494,1727952729608,-150.0,0.00010853,2]
[339759495,1727952729639,-150.0,0.00010854,2]
[339759496,1727952729669,-300.0,0.00010854,2]
[339759497,1727952729698,-150.0,0.00010855,2]
[339759498,1727952729728,-150.0,0.00010856,2]
[339759499,1727952729759,-150.0,0.00010857,2]
[339759500,1727952729795,-150.0,0.00010858,2]
[339759501,1727952729826,-150.0,0.0001086,2]
[339759502,1727952729857,-150.0,0.00010862,2]
[339759503,1727952729887,-150.0,0.00010863,2]
[339759504,1727952729919,-150.0,0.00010865,2]
[339759505,1727952730162,-150.0,0.00010868,2]
[339759506,1727952730195,-150.0,0.00010868,2]
[339759507,1727952730224,-150.0,0.0001087,2]
[339759508,1727952730253,-150.0,0.00010871,2]
[339759509,1727952730283,-150.0,0.00010871,2]
[339759510,1727952730312,-150.0,0.00010874,2]
[339759511,1727952730342,-150.0,0.00010877,2]
[339759512,1727952730372,-150.0,0.0001088,2]
[339759513,1727952730401,-150.0,0.00010881,2]
[339759514,1727952730431,-150.0,0.00010883,2]
[339759515,1727952730461,-150.0,0.00010886,2]
[339759516,1727952730491,-150.0,0.00010887,2]
[339759517,1727952730520,-150.0,0.00010888,2]
[339759518,1727952730551,-150.0,0.00010888,2]
[339759519,1727952730580,-150.0,0.00010889,2]
[339759520,1727952730611,-150.0,0.00010891,2]
[339759521,1727952730641,-150.0,0.00010892,2]
[339759522,1727952730670,-150.0,0.000109,2]
[339759523,1727952730698,-923.86041132,0.000109,2]
[339759524,1727952730728,-177.09486767,0.000109,2]
[339759525,1727952730759,-150.0,0.00010901,2]
[339759526,1727952730790,-150.0,0.00010901,2]
[339759527,1727952730818,-150.0,0.00010903,2]
[339759528,1727952730849,-150.0,0.00010906,2]
[339759529,1727952730879,-150.0,0.00010906,2]
[339759530,1727952730910,-150.0,0.00010909,2]
[339759531,1727952730940,-150.0,0.00010912,2]
[339759532,1727952730972,-150.0,0.00010913,2]
[339759533,1727952731003,-150.0,0.00010915,2]
[339759534,1727952731037,-150.0,0.00010916,2]
[339759535,1727952731071,-150.0,0.00010916,2]
[339759536,1727952731101,-150.0,0.00010916,2]
[339759537,1727952731131,-150.0,0.00010916,2]
[339759538,1727952731161,-150.0,0.00010917,2]
[339759539,1727952731190,-150.0,0.00010917,2]
[339759540,1727952731222,-150.0,0.00010922,2]
[339759541,1727952731249,-150.0,0.00010924,2]
[339759542,1727952731278,-150.0,0.00010928,2]
[339759543,1727952731310,-150.0,0.0001093,2]
[339759544,1727952731339,-150.0,0.00010934,2]
[339759545,1727952731368,-150.0,0.00010935,2]
[339759546,1727952731400,-150.0,0.00010936,2]
[339759547,1727952731432,-150.0,0.00010936,2]
[339759548,1727952731460,-150.0,0.00010937,2]
[339759549,1727952731489,-150.0,0.00010939,2]
[339759550,1727952731517,-150.0,0.00010941,2]
[339759551,1727952731549,-150.0,0.00010941,2]
[339759552,1727952731578,-150.0,0.00010941,2]
[339759553,1727952731609,-150.0,0.00010942,2]
[339759554,1727952731638,-150.0,0.00010943,2]
[339759555,1727952731667,-150.0,0.00010949,2]
[339759556,1727952731696,-150.0,0.00010949,2]
[339759557,1727952731726,-150.0,0.00010952,2]
[339759558,1727952731756,-150.0,0.00010953,2]
[339759559,1727952731787,-150.0,0.00010953,2]
[339759560,1727952731820,-150.0,0.00010959,2]
[339759561,1727952731853,-150.0,0.00010961,2]
[339759562,1727952732057,-150.0,0.00010961,2]
[339759563,1727952732124,-373.79522253,0.00010973,2]
[339759564,1727952732156,-150.0,0.00010973,2]
[339759565,1727952732186,-150.0,0.00010976,2]
[339759566,1727952732216,-150.0,0.00010985,2]
[339759567,1727952732247,-150.0,0.00010985,2]
[339759568,1727952732276,-279.24949848,0.00010998,2]
[339759569,1727952770097,899.54,9.876e-05,2]
[339759570,1727952815833,250.0,9.877e-05,2]
[339759571,1727952831539,400.0,9.877e-05,2]
[339759572,1727952881184,23900.0,9.877e-05,2]
[339759573,1727952962496,720.87,8.219e-05,2]
[339759574,1727953015061,426.29,9.872e-05,2]
[339759575,1727953050210,334.2,9.872e-05,2]
[339759576,1727953214406,250.0,9.874e-05,2]
[339759578,1727953433887,680.0,9.882e-05,2]
[339759579,1727953524758,250.0,9.885e-05,2]
[339759580,1727953559345,191.37,9.887e-05,2]
[339759581,1727953562543,684.82,8.219e-05,2]
[339759582,1727953619763,167.1,9.884e-05,2]
[339759603,1727953831792,-495.10005693,0.00010469,2]
[339759604,1727953831803,-364.02324395,0.0001047,2]
[339759605,1727953831816,-306.96357292,0.0001047,2]
[339759606,1727953831829,-13.83318313,0.0001047,2]
[339759607,1727953831839,-307.24327487,0.00010632,2]
[339759608,1727953837789,-40405.75672513,0.00010632,2]
[339759609,1727953837801,-150.0,0.00010728,2]
[339759610,1727953837810,-150.0,0.00010736,2]
[339759611,1727953837820,-150.0,0.00010737,2]
[339759612,1727953837831,-150.0,0.00010738,2]
[339759613,1727953837841,-150.0,0.0001074,2]
[339759614,1727953837850,-150.0,0.00010743,2]
[339759615,1727953837861,-150.0,0.00010753,2]
[339759616,1727953837870,-150.0,0.00010753,2]
[339759617,1727953837879,-499.99,0.00010753,2]
[339759618,1727953837888,-150.0,0.00010754,2]
[339759619,1727953837897,-150.0,0.0001076,2]
[339759620,1727953837907,-150.0,0.00010762,2]
[339759621,1727953837916,-150.0,0.00010766,2]
[339759622,1727953837925,-150.0,0.00010767,2]
[339759623,1727953837934,-150.0,0.00010767,2]
[339759624,1727953837943,-150.0,0.00010774,2]
[339759625,1727953837953,-150.0,0.00010774,2]
[339759626,1727953837962,-150.0,0.00010776,2]
[339759627,1727953837971,-150.0,0.00010782,2]
[339759628,1727953837980,-150.0,0.00010784,2]
[339759629,1727953837990,-150.0,0.00010791,2]
[339759630,1727953837999,-150.0,0.00010792,2]
[339759631,1727953838008,-150.0,0.00010792,2]
[339759632,1727953838017,-150.0,0.00010793,2]
[339759633,1727953838026,-150.0,0.00010793,2]
[339759634,1727953838035,-150.0,0.00010795,2]
[339759635,1727953838045,-1.3286924,0.00010796,2]
[339759636,1727953838056,-148.6713076,0.00010796,2]
[339759637,1727953838065,-150.0,0.00010797,2]
[339759638,1727953838075,-150.0,0.00010797,2]
[339759639,1727953838085,-150.0,0.00010798,2]
[339759640,1727953838094,-150.0,0.00010808,2]
[339759641,1727953838103,-150.0,0.00010813,2]
[339759642,1727953838112,-150.0,0.00010814,2]
[339759643,1727953838121,-150.0,0.0001082,2]
[339759644,1727953838131,-150.0,0.00010825,2]
[339759645,1727953838140,-150.0,0.00010827,2]
[339759646,1727953838150,-150.0,0.00010829,2]
[339759647,1727953838160,-150.0,0.00010838,2]
[339759648,1727953838169,-150.0,0.00010847,2]
[339759649,1727953838178,-150.0,0.00010848,2]
[339759650,1727953838192,-150.0,0.00010849,2]
[339759651,1727953838201,-150.0,0.00010851,2]
[339759652,1727953838211,-150.0,0.00010853,2]
[339759653,1727953838220,-150.0,0.00010854,2]
[339759654,1727953838232,-150.0,0.00010855,2]
[339759655,1727953838241,-150.0,0.00010856,2]
[339759656,1727953838251,-150.0,0.00010857,2]
[339759657,1727953838499,-150.0,0.00010857,2]
[339759658,1727953838534,-150.0,0.00010864,2]
[339759659,1727953838544,-150.0,0.00010867,2]
[339759660,1727953838554,-150.0,0.00010869,2]
[339759661,1727953838564,-150.0,0.0001087,2]
[339759662,1727953838573,-150.0,0.00010872,2]
[339759663,1727953838582,-150.0,0.00010872,2]
[339759664,1727953838592,-150.0,0.00010875,2]
[339759665,1727953838601,-150.0,0.00010879,2]
[339759666,1727953838611,-150.0,0.00010884,2]
[339759667,1727953838621,-150.0,0.00010886,2]
[339759668,1727953838630,-150.0,0.00010888,2]
[339759669,1727953838639,-159.8569,0.0001089,2]
[339759670,1727953838648,-655.3926,0.0001089,2]
[339759671,1727953838658,-150.0,0.00010893,2]
[339759672,1727953838668,-150.0,0.00010893,2]
[339759673,1727953838677,-150.0,0.00010898,2]
[339759674,1727953838686,-150.0,0.00010899,2]
[339759675,1727953838696,-150.0,0.00010899,2]
[339759676,1727953838705,-154.23122313,0.000109,2]
[339759677,1727953838715,-6642.3248649,0.000109,2]
[339759678,1727953838724,-615.90694088,0.000109,2]
[339759679,1727953838733,-150.0,0.00010903,2]
[339759680,1727953838742,-150.0,0.00010908,2]
[339759681,1727953838752,-150.0,0.00010909,2]
[339759682,1727953838762,-150.0,0.00010909,2]
[339759683,1727953838771,-150.0,0.0001091,2]
[339759684,1727953838781,-150.0,0.0001091,2]
[339759685,1727953838790,-150.0,0.00010912,2]
[339759686,1727953838800,-150.0,0.00010912,2]
[339759687,1727953838809,-500.0,0.00010912,2]
[339759688,1727953838819,-150.0,0.00010914,2]
[339759689,1727953838828,-150.0,0.00010916,2]
[339759690,1727953838837,-150.0,0.00010918,2]
[339759691,1727953838847,-150.0,0.0001092,2]
[339759692,1727953838857,-150.0,0.00010925,2]
[339759693,1727953838866,-150.0,0.00010926,2]
[339759694,1727953838875,-150.0,0.00010929,2]
[339759695,1727953838885,-150.0,0.00010935,2]
[339759696,1727953838895,-449.181,0.00010936,2]
[339759697,1727953838904,-160.117,0.00010936,2]
[339759698,1727953838913,-150.0,0.00010941,2]
[339759699,1727953838923,-150.0,0.00010946,2]
[339759700,1727953838933,-150.0,0.00010955,2]
[339759701,1727953838943,-150.0,0.00010956,2]
[339759702,1727953838952,-150.0,0.00010958,2]
[339759703,1727953838962,-191.13,0.00010959,2]
[339759704,1727953838972,-158.56,0.00010959,2]
[339759705,1727953838981,-150.0,0.00010963,2]
[339759706,1727953838991,-150.0,0.00010963,2]
[339759707,1727953839001,-150.0,0.00010964,2]
[339759708,1727953839011,-150.0,0.00010965,2]
[339759709,1727953839020,-150.0,0.00010969,2]
[339759710,1727953839030,-150.0,0.00010969,2]
[339759711,1727953839040,-150.0,0.0001097,2]
[339759712,1727953839050,-150.0,0.00010974,2]
[339759713,1727953839060,-150.0,0.00010975,2]
[339759714,1727953839071,-150.0,0.00010977,2]
[339759715,1727953839082,-150.0,0.00010979,2]
[339759716,1727953839092,-150.0,0.0001098,2]
[339759717,1727953839101,-150.0,0.00010982,2]
[339759718,1727953839111,-150.0,0.00010983,2]
[339759719,1727953839121,-150.0,0.00010984,2]
[339759720,1727953839131,-150.0,0.00010988,2]
[339759721,1727953839141,-150.0,0.00010988,2]
[339759722,1727953839151,-200.0,0.00010998,2]
[339759723,1727953839160,-2000.0,0.00010998,2]
[339759724,1727953839171,-200.0,0.00010998,2]
[339759725,1727953839181,-2000.0,0.00010998,2]
[339759726,1727953839195,-200.0,0.00010998,2]
[339759727,1727953839206,-1732.5831424,0.00010998,2]
[339759728,1727953839216,-9918.6512662,0.00010998,2]
[339759729,1727953839227,-1048.49,0.00010998,2]
[339759730,1727953839237,-349637.84869592,0.00011,2]
[339759731,1727953839247,-1321776.35630788,0.00011,2]
[339759732,1727953839953,-150.0,0.00010734,2]
[339759733,1727953839963,-150.0,0.0001075,2]
[339759734,1727953839972,-150.0,0.00010756,2]
[339759735,1727953839982,-150.0,0.00010764,2]
[339759736,1727953839997,-150.0,0.00010765,2]
[339759737,1727953840009,-150.0,0.00010765,2]
[339759738,1727953840018,-150.0,0.00010796,2]
[339759739,1727953840028,-150.0,0.00010799,2]
[339759741,1727953840037,-150.0,0.000108,2]
[339759743,1727953840051,-150.0,0.00010806,2]
[339759745,1727953840061,-150.0,0.00010817,2]
[339759747,1727953840071,-150.0,0.00010834,2]
[339759749,1727953840084,-150.0,0.00010834,2]
[339759751,1727953840094,-150.0,0.00010842,2]
[339759753,1727953840104,-150.0,0.00010846,2]
[339759755,1727953840114,-150.0,0.00010848,2]
[339759757,1727953840124,-150.0,0.00010858,2]
[339759759,1727953840134,-150.0,0.0001086,2]
[339759761,1727953840144,-139.03575,0.00010888,2]
[339759781,1727953842702,-150.0,0.00010747,2]
[339759782,1727953842712,-150.0,0.00010762,2]
[339759783,1727953842722,-150.0,0.00010767,2]
[339759784,1727953842731,-150.0,0.00010769,2]
[339759785,1727953842740,-150.0,0.00010775,2]
[339759786,1727953842751,-150.0,0.00010787,2]
[339759787,1727953842761,-150.0,0.00010803,2]
[339759788,1727953842770,-150.0,0.00010826,2]
[339759789,1727953842780,-150.0,0.00010829,2]
[339759790,1727953842790,-150.0,0.00010831,2]
[339759791,1727953842800,-150.0,0.00010871,2]
[339759792,1727953842809,-150.0,0.00010872,2]
[339759793,1727953842819,-150.0,0.00010875,2]
[339759794,1727953842830,-150.0,0.00010878,2]
[339759795,1727953842839,-150.0,0.00010879,2]
[339759796,1727953842849,-10.96425,0.00010888,2]
[339759797,1727953842859,-150.0,0.00010894,2]
[339759798,1727953842868,-150.0,0.00010901,2]
[339759799,1727953842878,-150.0,0.00010907,2]
[339759800,1727953842887,-150.0,0.0001091,2]
[339759801,1727953842896,-150.0,0.00010915,2]
[339759802,1727953842906,-150.0,0.00010917,2]
[339759803,1727953842915,-150.0,0.00010919,2]
[339759804,1727953842925,-150.0,0.00010922,2]
[339759805,1727953842934,-150.0,0.00010926,2]
[339759806,1727953842943,-150.0,0.00010927,2]
[339759807,1727953842953,-150.0,0.00010932,2]
[339759808,1727953842962,-150.0,0.00010936,2]
[339759809,1727953842972,-150.0,0.00010939,2]
[339759810,1727953842981,-150.0,0.00010948,2]
[339759811,1727953842990,-150.0,0.0001095,2]
[339759812,1727953843000,-150.0,0.00010958,2]
[339759813,1727953843010,-150.0,0.00010959,2]
[339759814,1727953843020,-150.0,0.00010962,2]
[339759815,1727953843029,-150.0,0.00010964,2]
[339759816,1727953843038,-150.0,0.00010969,2]
[339759817,1727953843048,-150.0,0.00010971,2]
[339759818,1727953843057,-150.0,0.00010976,2]
[339759820,1727953843067,-150.0,0.00010977,2]
[339759822,1727953843076,-150.0,0.00010981,2]
[339759823,1727953843085,-150.0,0.00010981,2]
[339759824,1727953843095,-150.0,0.00010985,2]
[339759825,1727953843104,-150.0,0.00010991,2]
[339759826,1727953843114,-150.0,0.00010992,2]
[339759827,1727953843124,-150.0,0.00010992,2]
[339759828,1727953843134,-150.0,0.00010995,2]
[339759829,1727953843143,-3752.30571071,0.00010998,2]
[339759830,1727953843155,-5531.28302645,0.00010998,2]
[339759831,1727953843167,-5562.72028883,0.00010998,2]
[339759832,1727953843192,-1574.809488,0.00010998,2]
[339759833,1727953843219,-38274.43200281,0.00010998,2]
[339759834,1727953843230,-204061.73256152,0.00011,2]
[339759835,1727953843242,-24856.3089465,0.00011,2]
[339759836,1727953843269,-1200.0,0.00011,2]
[339759853,1727953845623,-2438.53564919,0.00011,2]
[339759854,1727953845637,-1000.54103258,0.00011,2]
[339759855,1727953845667,-8608.03146518,0.00011,2]
[339759856,1727953845676,-375974.8323539,0.00011,2]
[339759857,1727953845688,-965.24945157,0.00011,2]
[339759858,1727953845786,-1899.90440391,0.00011,2]
[339759859,1727953845956,-49753.20717257,0.00011,2]
[339759860,1727953845970,-62121.85403699,0.00011,2]
[339759861,1727953845982,-3062.7132,0.00011,2]
[339759867,1727954029858,456.0,9.908e-05,2]
[339759868,1727954069429,671.08,8.219e-05,2]
[339759869,1727954093329,345.55,9.908e-05,2]
[339759870,1727954119005,250.0,9.905e-05,2]
[339759871,1727954143387,150.0,9.905e-05,2]
[339759872,1727954143408,100.65,9.905e-05,2]
[339759873,1727954186230,49.35,9.905e-05,2]
[339759874,1727954186250,150.0,9.905e-05,2]
[339759875,1727954186273,38.58,9.905e-05,2]
[339759876,1727954291641,111.42,9.905e-05,2]
[339759877,1727954291665,150.0,9.905e-05,2]
[339759878,1727954291687,289.3,9.905e-05,2]
[339759879,1727954291711,11038.72,9.905e-05,2]
[339759887,1727954599836,635.2,9.892e-05,2]
[339759888,1727954630005,341.03,9.893e-05,2]
[339759889,1727954649721,250.65,9.895e-05,2]
[339759890,1727954678564,689.49,8.219e-05,2]
[339759891,1727954729650,110491.75879727,0.000101,2]
[339759892,1727954737111,250.0,9.891e-05,2]
[339759893,1727954767409,967.70739442,0.0001,2]
[339759894,1727954877503,150.0,0.0001,2]
[339759895,1727954877526,150.0,0.0001,2]
[339759896,1727954877547,150.0,0.0001,2]
[339759897,1727954877569,150.0,0.0001,2]
[339759898,1727954877592,20659.14649858,0.0001,2]
[339759900,1727954918457,2589.37715014,0.0001,2]
[339759902,1727954921899,12193.78380278,0.0001,2]
[339759936,1727955031810,-689.49,0.0001047,2]
[339759937,1727955031819,-150.0,0.00010732,2]
[339759938,1727955031829,-150.0,0.00010733,2]
[339759939,1727955031838,-150.0,0.00010749,2]
[339759940,1727955031848,-529.99372365,0.00010753,2]
[339759941,1727955031858,-150.0,0.00010753,2]
[339759942,1727955031867,-150.0,0.00010755,2]
[339759943,1727955031877,-150.0,0.00010769,2]
[339759944,1727955031887,-150.0,0.00010775,2]
[339759945,1727955031897,-150.0,0.00010786,2]
[339759946,1727955031906,-150.0,0.00010791,2]
[339759947,1727955031916,-150.0,0.00010797,2]
[339759948,1727955031927,-973.45950364,0.000108,2]
[339759949,1727955031937,-150.0,0.00010803,2]
[339759950,1727955031946,-150.0,0.00010804,2]
[339759951,1727955031956,-150.0,0.00010809,2]
[339759952,1727955031965,-150.0,0.0001081,2]
[339759953,1727955031975,-150.0,0.0001081,2]
[339759954,1727955031985,-150.0,0.00010818,2]
[339759955,1727955031994,-150.0,0.00010819,2]
[339759956,1727955032004,-150.0,0.0001082,2]
[339759957,1727955032013,-150.0,0.00010822,2]
[339759958,1727955032022,-150.0,0.0001083,2]
[339759959,1727955032032,-150.0,0.00010834,2]
[339759960,1727955032042,-150.0,0.00010835,2]
[339759961,1727955032052,-150.0,0.00010843,2]
[339759962,1727955032061,-300.0,0.00010843,2]
[339759963,1727955032071,-150.0,0.00010843,2]
[339759964,1727955032080,-150.0,0.00010846,2]
[339759965,1727955032089,-150.0,0.00010849,2]
[339759966,1727955032099,-150.0,0.00010858,2]
[339759967,1727955032108,-150.0,0.00010861,2]
[339759968,1727955032117,-150.0,0.00010864,2]
[339759969,1727955032126,-150.0,0.00010865,2]
[339759970,1727955032136,-150.0,0.00010867,2]
[339759971,1727955032145,-150.0,0.00010867,2]
[339759972,1727955032155,-150.0,0.00010872,2]
[339759973,1727955032164,-150.0,0.00010872,2]
[339759974,1727955032174,-150.0,0.00010874,2]
[339759975,1727955032186,-150.0,0.00010874,2]
[339759976,1727955032196,-150.0,0.00010879,2]
[339759977,1727955032206,-150.0,0.00010886,2]
[339759978,1727955032217,-150.0,0.00010892,2]
[339759979,1727955032227,-150.0,0.00010895,2]
[339759980,1727955032236,-150.0,0.00010896,2]
[339759981,1727955032246,-2639.90849806,0.000109,2]
[339759982,1727955032258,-486.99460917,0.000109,2]
[339759983,1727955032279,-250.88031343,0.000109,2]
[339759984,1727955032305,-700.0,0.000109,2]
[339759985,1727955032316,-2242.60571545,0.000109,2]
[339759987,1727955037685,-561.82928208,0.000109,2]
[339759988,1727955037804,-900.45207265,0.000109,2]
[339759989,1727955037815,-6271.58836237,0.000109,2]
[339759990,1727955037827,-925.00561381,0.000109,2]
[339759991,1727955037836,-177.09486767,0.000109,2]
[339759992,1727955037845,-3601.92951853,0.000109,2]
[339759993,1727955037862,-1280.80000019,0.000109,2]
[339759994,1727955037889,-1095.36285969,0.000109,2]
[339759995,1727955037898,-150.0,0.00010908,2]
[339759996,1727955037907,-150.0,0.00010911,2]
[339759997,1727955037917,-500.0,0.00010912,2]
[339759998,1727955037926,-150.0,0.0001092,2]
[339759999,1727955037936,-150.0,0.00010933,2]
[339760000,1727955037945,-401.534,0.00010935,2]
[339760001,1727955037954,-150.0,0.00010947,2]
[339760002,1727955037963,-150.0,0.00010956,2]
[339760003,1727955037972,-165.02,0.00010959,2]
[339760004,1727955037982,-163.77,0.00010959,2]
[339760005,1727955037991,-152.9,0.00010959,2]
[339760006,1727955038000,-176.66,0.00010959,2]
[339760008,1727955038009,-150.0,0.00010959,2]
[339760010,1727955038018,-150.0,0.00010961,2]
[339760012,1727955038028,-150.0,0.00010968,2]
[339760013,1727955038037,-150.0,0.00010969,2]
[339760014,1727955038046,-150.0,0.00010971,2]
[339760015,1727955038055,-150.0,0.00010975,2]
[339760016,1727955038064,-150.0,0.00010979,2]
[339760017,1727955038073,-150.0,0.00010982,2]
[339760018,1727955038082,-150.0,0.00010986,2]
[339760019,1727955038093,-150.0,0.00010995,2]
[339760020,1727955038102,-150.0,0.00010995,2]
[339760021,1727955038111,-332991.77592878,0.00011,2]
[339760023,1727955038120,-1731.43860503,0.00011,2]
[339760024,1727955038130,-141044.66929803,0.00011,2]
[339760033,1727955040468,-9203.11958714,0.00011,2]
[339760035,1727955040481,-4307.56043718,0.00011,2]
[339760037,1727955040492,-670.7,0.00011,2]
[339760040,1727955040504,-86636.95704153,0.00011,2]
[339760042,1727955040515,-14402.19677375,0.00011,2]
[339760045,1727955040538,-1490.48160631,0.00011,2]
[339760048,1727955040550,-18760.5019774,0.00011,2]
[339760050,1727955040561,-298.57312534,0.00011,2]
[339760052,1727955040574,-2098.83755617,0.00011,2]
[339760054,1727955040587,-18241.57225058,0.00011,2]
[339760056,1727955040599,-4355.31238879,0.00011,2]